{"text_format":"1","workbook":"xlsx","n_sheets":4,"sheets":["Deckblatt","Tabelle1","Tabelle3","Statistik"],"not_rendered":{"charts":0,"images":8,"macros":1,"external_links":0,"defined_names":1,"comments":0,"pivot_tables":0},"unopened":[],"bounds":{"document_bytes":16777216,"sheet_cells":100000,"rows_first":2000,"rows_last":500,"rows_between":2000,"halvings":0,"cell_chars":16384,"cell_head_chars":4096},"cells_cut":0,"cells_raw":0,"read":"whole","date_system":"1900"}

{"sheet":"Deckblatt","index":0,"n_rows":36,"n_cols":10,"rows_kept":36,"cut":false,"hidden":false,"merged":[]}
[]
[null,"Schafkopf-Bargeldlos-Protokoll-Statistik-Programm"]
[]
[]
[]
[]
[]
[]
[]
[]
[]
[]
[]
[]
[]
[]
[]
[]
[]
[]
[]
[]
[]
[]
[]
[]
[null,null,null,null,null,null,null,null,null," Das Tabellenblatt \"Tabelle1\" darf nicht umbenannt werden."]
[null,null,null,null,null,null,null,null,null," Bitte diese  Originalversion abspeichern und dann mit einer"]
[null,null,null,null,null,null,null,null,null," Arbeitskopie spielen."]
[]
[]
[null," "]
[]
[null,"Dies ist das Ergebniss langer Abende zweier Excel - Freak´s,  aber wir haben unser bestes gegeben."]
[null,"Betaversion 1.0 ….. weitere Updates in Vorbereitung …....Gut Blatt wünschen Matthias und Elmar Zeh"]
[null,"Die Verwendung ist kostenlos - Über eine Spende als Anerkennung würden wir uns aber sehr freuen."]

{"sheet":"Tabelle1","index":1,"n_rows":15,"n_cols":22,"rows_kept":15,"cut":false,"hidden":false,"merged":[]}
[null,null,null," "]
[null,"Sauspiel",null,"Kreuzrunde",null,"2 gegen 2",null,"Die Spiele",null,"Solo",null,"Wenz",null,"Farbwenz",null,"Geier",null,"Farbgeier",null,"Bettel",null,"1 geg 3 / Ramsch"]
[null,null,null,null,null,null,null,null,null,null,null,null,null,null,null,null," "]
[]
[]
[null," ","Gut Blatt wünschen Elmar und Matthias Zeh, Höchberg"]
[null,"Tragen ",null," ",null,"sie hier ",null," ",null,"Ihre Namen",null," ",null,"ein. ",null,{"$f":"TODAY()","v":"2019-10-22"}]
[null,"Elvis Presley",null,{"$f":"SUM(D9:D1000)","v":-989.39},null,"Jürgen Drews",null,{"$f":"SUM(H9:H1000)","v":966.59},null,"Peter Kraus",null,{"$f":"SUM(L9:L1000)","v":1010.59},null,"Andrea Berg",null,{"$f":"SUM(P9:P1000)","v":-987.79},null,"verlorene Spiele"]
[null,{"$f":"SUM(B10:B700)","v":3},null,"x gewonnen",null,{"$f":"SUM(F10:F700)","v":2},null,"x gewonnen",null,{"$f":"SUM(J10:J700)","v":4},null,"x gewonnen",null,{"$f":"SUM(N10:N700)","v":3},null,"x gewonnen",null,{"$f":"U9","v":2},null,"Spielart",{"$f":"SUM(U10:U700)","v":2},"Spiel Nummer"]
[null,1,null,0.4,null,null,null,-0.4,null,1,null,0.4,null,null,null,-0.4,null,0.4,null,"Sauspiel",null,1]
[null,null,null,-0.6,null,1,null,1.7999999999999998,null,null,null,-0.6,null,null,null,-0.6,null,0.6,null,"Wenz",null,2]
[null,null,null,-0.6,null,null,null,-0.6,null,null,null,-0.6,null,1,null,1.7999999999999998,null,0.6,null,"Bettel",null,3]
[null,1,null,0.6,null,null,null,-1.7999999999999998,null,1,null,0.6,null,1,null,0.6,null,-0.6,null,"Solo",1,4]
[null,1,null,10.8,null,null,null,-32.400000000000006,null,1,null,10.8,null,1,null,10.8,null,-10.8,null,"Wenz",1,5]
[null,null,null,-999.99,null,1,null,999.99,null,1,null,999.99,null,null,null,-999.99,null,999.99,null,"2 gegen 2",null,6]

{"sheet":"Tabelle3","index":2,"n_rows":0,"n_cols":0,"rows_kept":0,"cut":false,"hidden":true,"merged":[]}

{"sheet":"Statistik","index":3,"n_rows":46,"n_cols":34,"rows_kept":46,"cut":false,"hidden":false,"merged":[[34,32,34,33],[10,22,10,25],[9,22,9,25],[34,23,34,24],[34,25,34,26],[34,30,34,31]]}
[]
[]
[]
[]
[]
[]
[]
[null,null,null,null,null,null,null,null,null,null,null,null,null,null,null,null,null,null,null,null,null,null,"Spass am Spiel mit einer Statistik - die jeder will - aber keiner braucht !"]
[]
[null,null,null,null,null,null,null,null,null,null,null,null,null,null,null,null,null,null,null,null,null,null,"Spielprotokoll und Statistik vom: "]
[null,null,null,null,null,null,null,null,null,null,null,null,null,null,null,null,null,null,null,null,null,null,{"$f":"TODAY()","v":"2019-10-22"},null,null,null,"                davon wurden"]
[null,null,null,null,null,null,null,null,null,null,null,null,null,null,null,null,null,null,null,null,null,null,"Gesamt",{"$f":"LARGE(Tabelle1!V10:V1010,1)","v":6},"Spiele",1,"gewonnen","verloren"]
[null,null,null,null,null,null,null,null,null,null,null,null,null,null,null,null,null,null,null,null,null,null,"davon",{"$f":"COUNTIF(Tabelle1!$T$10:$T$1012,\"Sauspiel\")","v":1},"Sauspiele",{"$f":"X13/$X$12","v":0.16666666666666666},{"$f":"X13-AB13","v":1},{"$f":"SUM((Tabelle1!$T$10:$T$1010=\"Sauspiel\")*(Tabelle1!$U$10:$U$1010=1))","v":0},null,null,"Gut Blatt wünschen Elmar & Matthias Zeh, Höchberg"]
[null,null,null,null,null,null,null,null,null,null,null,null,null,null,null,null,null,null,null,null,null,null,"davon",{"$f":"COUNTIF(Tabelle1!$T$10:$T$1012,\"Kreuzrunde\")","v":0},"Kreuzrunde",0,{"$f":"X14-AB14","v":0},{"$f":"SUM((Tabelle1!$T$10:$T$1010=\"Kreuzrunde\")*(Tabelle1!$U$10:$U$1010=1))","v":0}]
[null,null,null,null,null,null,null,null,null,null,null,null,null,null,null,null,null,null,null,null,null,null,"davon",{"$f":"COUNTIF(Tabelle1!$T$10:$T$1012,\"2 gegen 2\")","v":1},"2 gegen 2",0.16666666666666666,{"$f":"X15-AB15","v":1},{"$f":"SUM((Tabelle1!$T$10:$T$1010=\"2 gegen 2\")*(Tabelle1!$U$10:$U$1010=1))","v":0}]
[null,null,null,null,null,null,null,null,null,null,null,null,null,null,null,null,null,null,null,null,null,null,"davon",{"$f":"COUNTIF(Tabelle1!$T$10:$T$1012,\"Solo\")","v":1},"Solo",0.16666666666666666,0,{"$f":"SUM((Tabelle1!$T$10:$T$1010=\"Solo\")*(Tabelle1!$U$10:$U$1010=1))","v":1}]
[null,null,null,null,null,null,null,null,null,null,null,null,null,null,null,null,null,null,null,null,null,null,"davon",{"$f":"COUNTIF(Tabelle1!$T$10:$U$1012,\"Wenz\")","v":2},"Wenz",0.33333333333333331,1,{"$f":"SUM((Tabelle1!$T$10:$T$1010=\"Wenz\")*(Tabelle1!$U$10:$U$1010=1))","v":1},null,"Hier finden Sie Ihr persönliches Gewinn- oder Verlustergebnis."]
[null,null,null,null,null,null,null,null,null,null,null,null,null,null,null,null,null,null,null,null,null,null,"davon",{"$f":"COUNTIF(Tabelle1!$T$10:$T$1012,\"Farbwenz\")","v":0},"Farbwenz",0,0,{"$f":"SUM((Tabelle1!$T$10:$T$1010=\"Farbwenz\")*(Tabelle1!$U$10:$U$1010=1))","v":0},null," "]
[null,null,null,null,null,null,null,null,null,null,null,null,null,null,null,null,null,null,null,null,null,null,"davon",{"$f":"COUNTIF(Tabelle1!$T$10:$T$1012,\"Geier\")","v":0},"Geier",0,0,{"$f":"SUM((Tabelle1!$T$10:$T$1010=\"Geier\")*(Tabelle1!$U$10:$U$1010=1))","v":0},null,"Gewinner ?",{"$f":"Tabelle1!B8","v":"Elvis Presley"},{"$f":"Tabelle1!F8","v":"Jürgen Drews"},{"$f":"Tabelle1!J8","v":"Peter Kraus"},{"$f":"Tabelle1!N8","v":"Andrea Berg"}]
[null,null,null,null,null,null,null,null,null,null,null,null,null,null,null,null,null,null,null,null,null,null,"davon",{"$f":"COUNTIF(Tabelle1!$T$10:$T$1012,\"Farbgeier\")","v":0},"Farbgeier",0,0,{"$f":"SUM((Tabelle1!$T$10:$T$1010=\"Farbgeier\")*(Tabelle1!$U$10:$U$1010=1))","v":0},null,"Beträge","Euro","Euro","Euro","Euro"]
[null,null,null,null,null,null,null,null,null,null,null,null,null,null,null,null,null,null,null,null,null,null,"davon",{"$f":"COUNTIF(Tabelle1!$T$10:$T$1012,\"Bettel\")","v":1},"Bettel",0.16666666666666666,1,{"$f":"SUM((Tabelle1!$T$10:$T$1010=\"Bettel\")*(Tabelle1!$U$10:$U$1010=1))","v":0},null,"gewonnen",{"$f":"SUMIF(Tabelle1!B10:B1010,\"1\",Tabelle1!D10:D1010)","v":11.8},{"$f":"SUMIF(Tabelle1!F10:F1010,\"1\",Tabelle1!H10:H1010)","v":1001.79},{"$f":"SUMIF(Tabelle1!J10:J1010,\"1\",Tabelle1!L10:L1010)","v":1011.79},{"$f":"SUMIF(Tabelle1!N10:N1010,\"1\",Tabelle1!P10:P1010)","v":13.200000000000001}]
[null,null,null,null,null,null,null,null,null,null,null,null,null,null,null,null,null,null,null,null,null,null,"davon",{"$f":"COUNTIF(Tabelle1!$T$10:$T$1012,\"1 geg 3 / Ramsch\")","v":0},"1 geg 3 / Ramsch",0,0,{"$f":"SUM((Tabelle1!$T$10:$T$1010=\"1 geg 3 / Ramsch\")*(Tabelle1!$U$10:$U$1010=1))","v":0},null,"verloren",{"$f":"SUMIF(Tabelle1!B10:B1010,\"\",Tabelle1!D10:D1010)","v":-1001.19},{"$f":"SUMIF(Tabelle1!F10:F1010,\"\",Tabelle1!H10:H1010)","v":-35.200000000000003},{"$f":"SUMIF(Tabelle1!J10:J1010,\"\",Tabelle1!L10:L1010)","v":-1.2},{"$f":"SUMIF(Tabelle1!N10:N1010,\"\",Tabelle1!P10:P1010)","v":-1000.99}]
[null,null,null,null,null,null,null,null,null,null,null,null,null,null,null,null,null,null,null,null,null,null,"von",{"$f":"X12","v":6},"Spielen wurden:",null,{"$f":"X24","v":4},{"$f":"X25","v":2},null,"Ergebnis:",{"$f":"AE21+AE22","v":-989.3900000000001},{"$f":"AF21+AF22","v":966.58999999999992},{"$f":"AG21+AG22","v":1010.5899999999999},{"$f":"AH21+AH22","v":-987.79}]
[null,null,null,null,null,null,null,null,null,null,null,null,null,null,null,null,null,null,null,null,null,null,"gewonnen",{"$f":"X12-X25","v":4},"Spiele",{"$f":"X24/X12","v":0.66666666666666663},"gewonnen","verloren",null,"Schnitt/Spiel",{"$f":"AE23/$X$12","v":-164.89833333333334},{"$f":"AF23/$X$12","v":161.09833333333333},{"$f":"AG23/$X$12","v":168.43166666666664},{"$f":"AH23/$X$12","v":-164.63166666666666}]
[null,null,null,null,null,null,null,null,null,null,null,null,null,null,null,null,null,null,null,null,null,null,"verloren",{"$f":"Tabelle1!R9","v":2},"Spiele",{"$f":"X25/X12","v":0.33333333333333331}]
[]
[null,null,null,null,null,null,null,null,null,null,null,null,null,null,null,null,null,null,null,null,null,null,null,{"$f":"SUMIF(Tabelle1!U10:U1010,\"\",Tabelle1!R10:R1010)","v":1001.59},"€  Plussummen",null,{"$f":"X27/X24","v":250.39750000000001},"€",null,"Totaler",{"$f":"SUM($AE$21:$AH$21)","v":2038.58},"€ gewonnen","    Hier finden Sie die "]
[null,null,null,null,null,null,null,null,null,null,null,null,null,null,null,null,null,null,null,null,null,null,null,{"$f":"SUMIF(Tabelle1!U10:U1010,\"1\",Tabelle1!R10:R1010)*-1","v":11.4},"€  Minussummen",null,{"$f":"X28/X25","v":5.7},"€",null,"Umsatz",{"$f":"SUM($AE$22:$AH$22)","v":-2038.5800000000002},"€ verloren","   Summen aller Spiele"]
[null,null,null,null,null,null,null,null,null,null,null,null,null,null,null,null,null,null,null,null,null,null,null,{"$f":"X27+X28","v":1012.99},"€  Gesamtsummen",null,{"$f":"X29/X12","v":168.83166666666668},"€",null,"Schnitt",{"$f":"$AF$26/$X$12","v":0},"€ je Spiel","      und aller Spieler"]
[null,null,null,null,null,null,null,null,null,null,null,null,null,null,null,null,null,null,null,null,null,null,null,"egal ob gewonnen oder verloren",null,null,"Schnitt",null,null,null," "]
[null,null,null,null,null,null,null,null,null,null,null,null,null,null,null,null,null,null,null,null,null,null,null,{"$f":"X29/X12","v":168.83166666666668},"€uro je Spiel im Durchschnitt",null,null,null,null,"Hier unten finden Sie Ihre gewonnen oder verlorenen Schafkopfspiele"]
[null,null,null,null,null,null,null,null,null,null,null,null,null,null,null,null,null,null,null,null,null,null,null,null,null,null,null,null,null," "," "]
[null,null,null,null,null,null,null,null,null,null,null,null,null,null,null,null,null,null,null,null,null,null,"Spiele",{"$f":"X34/X12","v":0.5},{"$f":"Y34/X12","v":0.5},{"$f":"Z34/X12","v":0.33333333333333331},{"$f":"AA34/X12","v":0.66666666666666663}," ",null,"Spiele",{"$f":"AE34/X12","v":0.66666666666666663},{"$f":"AF34/X12","v":0.33333333333333331},{"$f":"AG34/X12","v":0.5},{"$f":"AH34/X12","v":0.5}]
[null,null,null,null,null,null,null,null,null,null,null,null,null,null,null,null,null,null,null,null,null,null,"gewonnen",{"$f":"SUM(X36:X45)","v":3},{"$f":"SUM(Y36:Y45)","v":3},2,4,null,null,"gewonnen",{"$f":"SUM(AE36:AE45)","v":4},{"$f":"SUM(AF36:AF45)","v":2},3,3]
[null,null,null,null,null,null,null,null,null,null,null,null,null,null,null,null,null,null,null,null,null,null,"verloren",{"$f":"Tabelle1!B8","v":"Elvis Presley"},null,{"$f":"Tabelle1!F8","v":"Jürgen Drews"},null,null,null,"verloren",{"$f":"Tabelle1!J8","v":"Peter Kraus"},null,{"$f":"Tabelle1!N8","v":"Andrea Berg"}]
[null,null,null,null,null,null,null,null,null,null,null,null,null,null,null,null,null,null,null,null,null,null,"Sauspiele",{"$f":"SUM((Tabelle1!$T$10:$T$1010=\"Sauspiel\")*(Tabelle1!$B$10:$B$1010=1))","v":1},{"$f":"SUM((Tabelle1!$T$10:$T$1010=\"Sauspiel\")*(Tabelle1!$B$10:$B$1010=\"\"))","v":0},{"$f":"SUM((Tabelle1!$T$10:$T$1010=\"Sauspiel\")*(Tabelle1!$F$10:$F$1010=1))","v":0},{"$f":"SUM((Tabelle1!$T$10:$T$1010=\"Sauspiel\")*(Tabelle1!$F$10:$F$1010=\"\"))","v":1},null,null,"Sauspiele",{"$f":"SUM((Tabelle1!$T$10:$T$1010=\"Sauspiel\")*(Tabelle1!$J$10:$J$1010=1))","v":1},{"$f":"SUM((Tabelle1!$T$10:$T$1010=\"Sauspiel\")*(Tabelle1!$J$10:$J$1010=\"\"))","v":0},{"$f":"SUM((Tabelle1!$T$10:$T$1010=\"Sauspiel\")*(Tabelle1!$N$10:$N$1010=1))","v":0},{"$f":"SUM((Tabelle1!$T$10:$T$1010=\"Sauspiel\")*(Tabelle1!$N$10:$N$1010=\"\"))","v":1}]
[null,null,null,null,null,null,null,null,null,null,null,null,null,null,null,null,null,null,null,null,null,null,"Kreuzrunde",{"$f":"SUM((Tabelle1!$T$10:$T$1010=\"Kreuzrunde\")*(Tabelle1!$B$10:$B$1010=1))","v":0},{"$f":"SUM((Tabelle1!$T$10:$T$1010=\"Kreuzrunde\")*(Tabelle1!$B$10:$B$1010=\"\"))","v":0},{"$f":"SUM((Tabelle1!$T$10:$T$1010=\"Kreuzrunde\")*(Tabelle1!$F$10:$F$1010=1))","v":0},{"$f":"SUM((Tabelle1!$T$10:$T$1010=\"Kreuzrunde\")*(Tabelle1!$F$10:$F$1010=\"\"))","v":0},null,null,"Kreuzrunde",{"$f":"SUM((Tabelle1!$T$10:$T$1010=\"Kreuzrunde\")*(Tabelle1!$J$10:$J$1010=1))","v":0},{"$f":"SUM((Tabelle1!$T$10:$T$1010=\"Kreuzrunde\")*(Tabelle1!$J$10:$J$1010=\"\"))","v":0},{"$f":"SUM((Tabelle1!$T$10:$T$1010=\"Kreuzrunde\")*(Tabelle1!$N$10:$N$1010=1))","v":0},{"$f":"SUM((Tabelle1!$T$10:$T$1010=\"Kreuzrunde\")*(Tabelle1!$N$10:$N$1010=\"\"))","v":0}]
[null,null,null,null,null,null,null,null,null,null,null,null,null,null,null,null,null,null,null,null,null,null,"2 gegen 2",{"$f":"SUM((Tabelle1!$T$10:$T$1010=\"2 gegen 2\")*(Tabelle1!$B$10:$B$1010=1))","v":0},{"$f":"SUM((Tabelle1!$T$10:$T$1010=\"2 gegen 2\")*(Tabelle1!$B$10:$B$1010=\"\"))","v":1},{"$f":"SUM((Tabelle1!$T$10:$T$1010=\"2 gegen 2\")*(Tabelle1!$F$10:$F$1010=1))","v":1},{"$f":"SUM((Tabelle1!$T$10:$T$1010=\"2 gegen 2\")*(Tabelle1!$F$10:$F$1010=\"\"))","v":0},null,null,"2 gegen 2",{"$f":"SUM((Tabelle1!$T$10:$T$1010=\"2 gegen 2\")*(Tabelle1!$J$10:$J$1010=1))","v":1},{"$f":"SUM((Tabelle1!$T$10:$T$1010=\"2 gegen 2\")*(Tabelle1!$J$10:$J$1010=\"\"))","v":0},{"$f":"SUM((Tabelle1!$T$10:$T$1010=\"2 gegen 2\")*(Tabelle1!$N$10:$N$1010=1))","v":0},{"$f":"SUM((Tabelle1!$T$10:$T$1010=\"2 gegen 2\")*(Tabelle1!$N$10:$N$1010=\"\"))","v":1}]
[null,null,null,null,null,null,null,null,null,null,null,null,null,null,null,null,null,null,null,null,null,null,"Solo",{"$f":"SUM((Tabelle1!$T$10:$T$1010=\"Solo\")*(Tabelle1!$B$10:$B$1010=1))","v":1},{"$f":"SUM((Tabelle1!$T$10:$T$1010=\"Solo\")*(Tabelle1!$B$10:$B$1010=\"\"))","v":0},{"$f":"SUM((Tabelle1!$T$10:$T$1010=\"Solo\")*(Tabelle1!$F$10:$F$1010=1))","v":0},{"$f":"SUM((Tabelle1!$T$10:$T$1010=\"Solo\")*(Tabelle1!$F$10:$F$1010=\"\"))","v":1},null,null,"Solo",{"$f":"SUM((Tabelle1!$T$10:$T$1010=\"Solo\")*(Tabelle1!$J$10:$J$1010=1))","v":1},{"$f":"SUM((Tabelle1!$T$10:$T$1010=\"Solo\")*(Tabelle1!$J$10:$J$1010=\"\"))","v":0},{"$f":"SUM((Tabelle1!$T$10:$T$1010=\"Solo\")*(Tabelle1!$N$10:$N$1010=1))","v":1},{"$f":"SUM((Tabelle1!$T$10:$T$1010=\"Solo\")*(Tabelle1!$N$10:$N$1010=\"\"))","v":0}]
[null,null,null,null,null,null,null,null,null,null,null,null,null,null,null,null,null,null,null,null,null,null,"Wenz",{"$f":"SUM((Tabelle1!$T$10:$T$1010=\"Wenz\")*(Tabelle1!$B$10:$B$1010=1))","v":1},{"$f":"SUM((Tabelle1!$T$10:$T$1010=\"Wenz\")*(Tabelle1!$B$10:$B$1010=\"\"))","v":1},{"$f":"SUM((Tabelle1!$T$10:$T$1010=\"Wenz\")*(Tabelle1!$F$10:$F$1010=1))","v":1},{"$f":"SUM((Tabelle1!$T$10:$T$1010=\"Wenz\")*(Tabelle1!$F$10:$F$1010=\"\"))","v":1},null,null,"Wenz",{"$f":"SUM((Tabelle1!$T$10:$T$1010=\"Wenz\")*(Tabelle1!$J$10:$J$1010=1))","v":1},{"$f":"SUM((Tabelle1!$T$10:$T$1010=\"Wenz\")*(Tabelle1!$J$10:$J$1010=\"\"))","v":1},{"$f":"SUM((Tabelle1!$T$10:$T$1010=\"Wenz\")*(Tabelle1!$N$10:$N$1010=1))","v":1},{"$f":"SUM((Tabelle1!$T$10:$T$1010=\"Wenz\")*(Tabelle1!$N$10:$N$1010=\"\"))","v":1}]
[null,null,null,null,null,null,null,null,null,null,null,null,null,null,null,null,null,null,null,null,null,null,"Farbwenz",{"$f":"SUM((Tabelle1!$T$10:$T$1010=\"Farbwenz\")*(Tabelle1!$B$10:$B$1010=1))","v":0},{"$f":"SUM((Tabelle1!$T$10:$T$1010=\"Farbwenz\")*(Tabelle1!$B$10:$B$1010=\"\"))","v":0},{"$f":"SUM((Tabelle1!$T$10:$T$1010=\"Farbwenz\")*(Tabelle1!$F$10:$F$1010=1))","v":0},{"$f":"SUM((Tabelle1!$T$10:$T$1010=\"Farbwenz\")*(Tabelle1!$F$10:$F$1010=\"\"))","v":0},null,null,"Farbwenz",{"$f":"SUM((Tabelle1!$T$10:$T$1010=\"Farbwenz\")*(Tabelle1!$J$10:$J$1010=1))","v":0},{"$f":"SUM((Tabelle1!$T$10:$T$1010=\"Farbwenz\")*(Tabelle1!$J$10:$J$1010=\"\"))","v":0},{"$f":"SUM((Tabelle1!$T$10:$T$1010=\"Farbwenz\")*(Tabelle1!$N$10:$N$1010=1))","v":0},{"$f":"SUM((Tabelle1!$T$10:$T$1010=\"Farbwenz\")*(Tabelle1!$N$10:$N$1010=\"\"))","v":0}]
[null,null,null,null,null,null,null,null,null,null,null,null,null,null,null,null,null,null,null,null,null,null,"Geier",{"$f":"SUM((Tabelle1!$T$10:$T$1010=\"Geier\")*(Tabelle1!$B$10:$B$1010=1))","v":0},{"$f":"SUM((Tabelle1!$T$10:$T$1010=\"Geier\")*(Tabelle1!$B$10:$B$1010=\"\"))","v":0},{"$f":"SUM((Tabelle1!$T$10:$T$1010=\"Geier\")*(Tabelle1!$F$10:$F$1010=1))","v":0},{"$f":"SUM((Tabelle1!$T$10:$T$1010=\"Geier\")*(Tabelle1!$F$10:$F$1010=\"\"))","v":0},null,null,"Geier",{"$f":"SUM((Tabelle1!$T$10:$T$1010=\"Geier\")*(Tabelle1!$J$10:$J$1010=1))","v":0},{"$f":"SUM((Tabelle1!$T$10:$T$1010=\"Geier\")*(Tabelle1!$J$10:$J$1010=\"\"))","v":0},{"$f":"SUM((Tabelle1!$T$10:$T$1010=\"Geier\")*(Tabelle1!$N$10:$N$1010=1))","v":0},{"$f":"SUM((Tabelle1!$T$10:$T$1010=\"Geier\")*(Tabelle1!$N$10:$N$1010=\"\"))","v":0}]
[null,null,null,null,null,null,null,null,null,null,null,null,null,null,null,null,null,null,null,null,null,null,"Farbgeier",{"$f":"SUM((Tabelle1!$T$10:$T$1010=\"Farbgeier\")*(Tabelle1!$B$10:$B$1010=1))","v":0},{"$f":"SUM((Tabelle1!$T$10:$T$1010=\"Farbgeier\")*(Tabelle1!$B$10:$B$1010=\"\"))","v":0},{"$f":"SUM((Tabelle1!$T$10:$T$1010=\"Farbgeier\")*(Tabelle1!$F$10:$F$1010=1))","v":0},{"$f":"SUM((Tabelle1!$T$10:$T$1010=\"Farbgeier\")*(Tabelle1!$F$10:$F$1010=\"\"))","v":0},null,null,"Farbgeier",{"$f":"SUM((Tabelle1!$T$10:$T$1010=\"Farbgeier\")*(Tabelle1!$J$10:$J$1010=1))","v":0},{"$f":"SUM((Tabelle1!$T$10:$T$1010=\"Farbgeier\")*(Tabelle1!$J$10:$J$1010=\"\"))","v":0},{"$f":"SUM((Tabelle1!$T$10:$T$1010=\"Farbgeier\")*(Tabelle1!$N$10:$N$1010=1))","v":0},{"$f":"SUM((Tabelle1!$T$10:$T$1010=\"Farbgeier\")*(Tabelle1!$N$10:$N$1010=\"\"))","v":0}]
[null,null,null,null,null,null,null,null,null,null,null,null,null,null,null,null,null,null,null,null,null,null,"Bettel",{"$f":"SUM((Tabelle1!$T$10:$T$1010=\"Bettel\")*(Tabelle1!$B$10:$B$1010=1))","v":0},{"$f":"SUM((Tabelle1!$T$10:$T$1010=\"Bettel\")*(Tabelle1!$B$10:$B$1010=\"\"))","v":1},{"$f":"SUM((Tabelle1!$T$10:$T$1010=\"Bettel\")*(Tabelle1!$F$10:$F$1010=1))","v":0},{"$f":"SUM((Tabelle1!$T$10:$T$1010=\"Bettel\")*(Tabelle1!$F$10:$F$1010=\"\"))","v":1},null,null,"Bettel",{"$f":"SUM((Tabelle1!$T$10:$T$1010=\"Bettel\")*(Tabelle1!$J$10:$J$1010=1))","v":0},{"$f":"SUM((Tabelle1!$T$10:$T$1010=\"Bettel\")*(Tabelle1!$J$10:$J$1010=\"\"))","v":1},{"$f":"SUM((Tabelle1!$T$10:$T$1010=\"Bettel\")*(Tabelle1!$N$10:$N$1010=1))","v":1},{"$f":"SUM((Tabelle1!$T$10:$T$1010=\"Bettel\")*(Tabelle1!$N$10:$N$1010=\"\"))","v":0}]
[null,null,null,null,null,null,null,null,null,null,null,null,null,null,null,null,null,null,null,null,null,null,"1 geg 3/ Ramsch",{"$f":"SUM((Tabelle1!$T$10:$T$1010=\"1 geg 3 / Ramsch\")*(Tabelle1!$B$10:$B$1010=1))","v":0},{"$f":"SUM((Tabelle1!$T$10:$T$1010=\"1 geg 3 / Ramsch\")*(Tabelle1!$B$10:$B$1010=\"\"))","v":0},{"$f":"SUM((Tabelle1!$T$10:$T$1010=\"1 geg 3 / Ramsch\")*(Tabelle1!$F$10:$F$1010=1))","v":0},{"$f":"SUM((Tabelle1!$T$10:$T$1010=\"1 geg 3 / Ramsch\")*(Tabelle1!$F$10:$F$1010=\"\"))","v":0},null,null,"1 geg 3 / Ramsch",{"$f":"SUM((Tabelle1!$T$10:$T$1010=\"1 geg 3 / Ramsch\")*(Tabelle1!$J$10:$J$1010=1))","v":0},{"$f":"SUM((Tabelle1!$T$10:$T$1010=\"1 geg 3 / Ramsch\")*(Tabelle1!$J$10:$J$1010=\"\"))","v":0},{"$f":"SUM((Tabelle1!$T$10:$T$1010=\"1 geg 3 / Ramsch\")*(Tabelle1!$N$10:$N$1010=1))","v":0},{"$f":"SUM((Tabelle1!$T$10:$T$1010=\"1 geg 3 / Ramsch\")*(Tabelle1!$N$10:$N$1010=\"\"))","v":0}]
[null,null,null,null,null,null,null,null,null,null,null,null,null,null,null,null,null,null,null,null,null,null,"Spiele","gewonnen","verloren","gewonnen","verloren",null,null,"Spiele","gewonnen","verloren","gewonnen","verloren"]